[Event "Titled Tuesday Blitz May 30 Early 2023"]
[White "Fiorito, Francisco"]
[Black "Sanhueza, Cristian"]
[WhiteFideId "180165"]
[BlackFideId "116815"]
[WhiteElo "2341"]
[BlackElo "2174"]
[Result "0-1"]
[Round "08"]
[TimeControl "180+2"]
[Date "2023.05.30"]
[WhiteClock "0:00:09"]
[BlackClock "0:00:06"]

1. d4 {[%clk 0:03:00]}  Nf6 {[%clk 0:02:54]} 2. Bf4 {[%clk 0:03:00]}  c5 {[%clk 0:02:53]} 3. e3 {[%clk 0:02:58]}  Qb6 {[%clk 0:02:54]} 4. Nc3 {[%clk 0:02:52]}  a6 {[%clk 0:02:54]} 5. a3 {[%clk 0:02:40]}  cxd4 {[%clk 0:02:53]} 6. exd4 {[%clk 0:02:38]}  d5 {[%clk 0:02:53]} 7. Nf3 {[%clk 0:02:32]}  Nc6 {[%clk 0:02:52]} 8. Na4 {[%clk 0:02:20]}  Qd8 {[%clk 0:02:42]} 9. h3 {[%clk 0:02:13]}  Bf5 {[%clk 0:02:37]} 10. Nc5 {[%clk 0:02:11]}  Ne4 {[%clk 0:02:21]} 11. Nd3 {[%clk 0:01:57]}  e6 {[%clk 0:02:17]} 12. c3 {[%clk 0:01:56]}  Bd6 {[%clk 0:02:16]} 13. Nfe5 {[%clk 0:01:53]}  f6 {[%clk 0:02:13]} 14. Nf3 {[%clk 0:01:36]}  Nxf2 {[%clk 0:01:38]} 15. Kxf2 {[%clk 0:01:12]}  Bxd3 {[%clk 0:01:37]} 16. Bxd3 {[%clk 0:00:50]}  Bxf4 {[%clk 0:01:37]} 17. g3 {[%clk 0:00:48]}  Bc7 {[%clk 0:01:32]} 18. Re1 {[%clk 0:00:47]}  Qd6 {[%clk 0:01:28]} 19. Rg1 {[%clk 0:00:40]}  O-O {[%clk 0:01:24]} 20. Qc2 {[%clk 0:00:40]}  f5 {[%clk 0:01:22]} 21. Rae1 {[%clk 0:00:39]}  Rae8 {[%clk 0:01:21]} 22. Qb3 {[%clk 0:00:32]}  Kh8 {[%clk 0:01:06]} 23. Re2 {[%clk 0:00:30]}  b5 {[%clk 0:01:04]} 24. Qc2 {[%clk 0:00:24]}  e5 {[%clk 0:00:51]} 25. dxe5 {[%clk 0:00:21]}  Nxe5 {[%clk 0:00:52]} 26. Rge1 {[%clk 0:00:16]}  Ng4+ {[%clk 0:00:38]} 27. Kf1 {[%clk 0:00:12]}  Qxg3 {[%clk 0:00:28]} 28. Rxe8 {[%clk 0:00:08]}  Qxf3+ {[%clk 0:00:28]} 29. Kg1 {[%clk 0:00:09]}  Bb6+ {[%clk 0:00:15]} 30. R1e3 {[%clk 0:00:08]}  Bxe3+ {[%clk 0:00:14]} 31. Rxe3 {[%clk 0:00:06]}  Qxe3+ {[%clk 0:00:13]} 32. Kg2 {[%clk 0:00:07]}  Nf6 {[%clk 0:00:07]} 33. Bxf5 {[%clk 0:00:06]}  Ne4 {[%clk 0:00:06]} 34. Bxe4 {[%clk 0:00:07]}  dxe4 {[%clk 0:00:06]} 35. Qd1 {[%clk 0:00:08]}  Rf2+ {[%clk 0:00:05]} 36. Kg1 {[%clk 0:00:08]}  Qg3+ {[%clk 0:00:05]} 37. Kh1 {[%clk 0:00:09]}  Qg2# {[%clk 0:00:06]} 0-1


[Site "https://www.chess.com"]

[Event "Titled Tuesday Blitz May 30 Early 2023"]
[White "Grave, Jacob Templen"]
[Black "Kleiman, Jake"]
[WhiteFideId "1542656"]
[BlackFideId "2020041"]
[WhiteElo "2189"]
[BlackElo "2601"]
[Result "0-1"]
[Round "08"]
[TimeControl "180+2"]
[Date "2023.05.30"]
[WhiteClock "0:00:00"]
[BlackClock "0:00:05"]

1. d4 {[%clk 0:02:59]}  Nf6 {[%clk 0:03:00]} 2. c4 {[%clk 0:02:59]}  e6 {[%clk 0:03:00]} 3. Nc3 {[%clk 0:02:59]}  Bb4 {[%clk 0:03:01]} 4. f3 {[%clk 0:02:58]}  c5 {[%clk 0:02:59]} 5. d5 {[%clk 0:02:58]}  O-O {[%clk 0:02:59]} 6. e4 {[%clk 0:02:57]}  d6 {[%clk 0:02:58]} 7. Ne2 {[%clk 0:02:55]}  exd5 {[%clk 0:02:58]} 8. cxd5 {[%clk 0:02:54]}  b5 {[%clk 0:02:56]} 9. a4 {[%clk 0:02:51]}  bxa4 {[%clk 0:02:55]} 10. Rxa4 {[%clk 0:02:39]}  Re8 {[%clk 0:02:50]} 11. Ng3 {[%clk 0:02:35]}  Nbd7 {[%clk 0:02:47]} 12. Be2 {[%clk 0:02:35]}  Ne5 {[%clk 0:02:36]} 13. O-O {[%clk 0:02:30]}  Bd7 {[%clk 0:02:36]} 14. Ra6 {[%clk 0:01:58]}  Qc7 {[%clk 0:02:17]} 15. Bg5 {[%clk 0:01:48]}  Bxc3 {[%clk 0:01:43]} 16. bxc3 {[%clk 0:01:45]}  Bc8 {[%clk 0:01:43]} 17. Bxf6 {[%clk 0:00:58]}  Bxa6 {[%clk 0:01:42]} 18. Bxa6 {[%clk 0:00:56]}  gxf6 {[%clk 0:01:25]} 19. f4 {[%clk 0:00:43]}  Ng6 {[%clk 0:01:20]} 20. Bb5 {[%clk 0:00:27]}  Re7 {[%clk 0:01:08]} 21. Nh5 {[%clk 0:00:16]}  Kh8 {[%clk 0:01:03]} 22. Nxf6 {[%clk 0:00:14]}  c4 {[%clk 0:00:33]} 23. Qh5 {[%clk 0:00:12]}  Nf8 {[%clk 0:00:22]} 24. Qg5 {[%clk 0:00:06]}  Ne6 {[%clk 0:00:14]} 25. dxe6 {[%clk 0:00:05]}  fxe6 {[%clk 0:00:15]} 26. Kh1 {[%clk 0:00:02]}  Rg7 {[%clk 0:00:13]} 27. Qh6 {[%clk 0:00:02]}  Rg6 {[%clk 0:00:11]} 28. Qh4 {[%clk 0:00:02]}  Rf8 {[%clk 0:00:07]} 29. e5 {[%clk 0:00:00]}  d5 {[%clk 0:00:05]} 0-1


[Site "https://www.chess.com"]

[Event "Titled Tuesday Blitz May 30 Early 2023"]
[White "Shuvalov, Evgenij"]
[Black "Avalos Parra, Joao"]
[WhiteFideId "4187237"]
[BlackFideId "3402541"]
[WhiteElo "2080"]
[BlackElo "2173"]
[Result "1-0"]
[Round "08"]
[TimeControl "180+2"]
[Date "2023.05.30"]
[WhiteClock "0:00:33"]
[BlackClock "0:00:38"]

1. d4 {[%clk 0:02:52]}  d5 {[%clk 0:02:59]} 2. c4 {[%clk 0:02:52]}  e6 {[%clk 0:02:59]} 3. Nc3 {[%clk 0:02:50]}  Nf6 {[%clk 0:02:59]} 4. cxd5 {[%clk 0:02:50]}  exd5 {[%clk 0:03:00]} 5. Bg5 {[%clk 0:02:50]}  c6 {[%clk 0:03:01]} 6. e3 {[%clk 0:02:50]}  h6 {[%clk 0:03:01]} 7. Bh4 {[%clk 0:02:50]}  Be7 {[%clk 0:03:02]} 8. Bd3 {[%clk 0:02:50]}  O-O {[%clk 0:03:02]} 9. Nge2 {[%clk 0:02:50]}  Ne4 {[%clk 0:02:56]} 10. Bxe7 {[%clk 0:02:48]}  Qxe7 {[%clk 0:02:57]} 11. Bxe4 {[%clk 0:02:49]}  dxe4 {[%clk 0:02:58]} 12. h3 {[%clk 0:02:49]}  Nd7 {[%clk 0:02:55]} 13. d5 {[%clk 0:02:43]}  cxd5 {[%clk 0:02:48]} 14. Nxd5 {[%clk 0:02:41]}  Qe5 {[%clk 0:02:47]} 15. Nec3 {[%clk 0:02:38]}  Nc5 {[%clk 0:02:41]} 16. O-O {[%clk 0:02:35]}  Rd8 {[%clk 0:02:40]} 17. Qd4 {[%clk 0:02:08]}  Qxd4 {[%clk 0:02:29]} 18. exd4 {[%clk 0:02:09]}  Ne6 {[%clk 0:02:24]} 19. Rfd1 {[%clk 0:01:59]}  f5 {[%clk 0:02:17]} 20. Ne7+ {[%clk 0:01:58]}  Kf7 {[%clk 0:02:17]} 21. Nxf5 {[%clk 0:01:57]}  Nf4 {[%clk 0:02:12]} 22. Ne3 {[%clk 0:01:53]}  Nd3 {[%clk 0:01:57]} 23. Nxe4 {[%clk 0:01:47]}  Nxb2 {[%clk 0:01:58]} 24. Rd2 {[%clk 0:01:45]}  Na4 {[%clk 0:01:58]} 25. Rc1 {[%clk 0:01:42]}  Nb6 {[%clk 0:01:53]} 26. Rc7+ {[%clk 0:01:39]}  Rd7 {[%clk 0:01:52]} 27. Rdc2 {[%clk 0:01:35]}  Rxc7 {[%clk 0:01:51]} 28. Rxc7+ {[%clk 0:01:36]}  Kg8 {[%clk 0:01:51]} 29. d5 {[%clk 0:01:29]}  Bd7 {[%clk 0:01:46]} 30. Nc5 {[%clk 0:01:24]}  Bb5 {[%clk 0:01:44]} 31. d6 {[%clk 0:01:14]}  Rd8 {[%clk 0:01:32]} 32. Nf5 {[%clk 0:01:12]}  Nd7 {[%clk 0:01:28]} 33. Ne6 {[%clk 0:01:05]}  Re8 {[%clk 0:01:23]} 34. Nfxg7 {[%clk 0:01:02]}  Rb8 {[%clk 0:01:15]} 35. Nh5 {[%clk 0:00:57]}  Re8 {[%clk 0:01:10]} 36. Nd4 {[%clk 0:00:46]}  Ba4 {[%clk 0:01:07]} 37. Rc4 {[%clk 0:00:39]}  Bd1 {[%clk 0:01:01]} 38. g4 {[%clk 0:00:38]}  Rd8 {[%clk 0:00:39]} 39. Rc7 {[%clk 0:00:35]}  Ne5 {[%clk 0:00:39]} 40. Nf6+ {[%clk 0:00:33]}  Kf8 {[%clk 0:00:38]} 41. Ne6# {[%clk 0:00:33]} 1-0


[Site "https://www.chess.com"]

[Event "Titled Tuesday Blitz May 30 Early 2023"]
[White "Sovetbekova, Nurai"]
[Black "Garv Gaur"]
[WhiteFideId "13801910"]
[BlackFideId "45030839"]
[WhiteElo "1857"]
[BlackElo "2068"]
[Result "1-0"]
[Round "08"]
[TimeControl "180+2"]
[Date "2023.05.30"]
[WhiteClock "0:00:28"]
[BlackClock "0:00:36"]

1. d4 {[%clk 0:03:00]}  Nf6 {[%clk 0:02:56]} 2. c4 {[%clk 0:03:01]}  e6 {[%clk 0:02:55]} 3. Nc3 {[%clk 0:03:01]}  Bb4 {[%clk 0:02:53]} 4. Qc2 {[%clk 0:02:59]}  d5 {[%clk 0:02:51]} 5. cxd5 {[%clk 0:02:52]}  exd5 {[%clk 0:02:52]} 6. Bg5 {[%clk 0:02:52]}  h6 {[%clk 0:02:52]} 7. Bh4 {[%clk 0:02:51]}  g5 {[%clk 0:02:52]} 8. Bg3 {[%clk 0:02:51]}  Ne4 {[%clk 0:02:52]} 9. a3 {[%clk 0:02:39]}  Bxc3+ {[%clk 0:02:27]} 10. bxc3 {[%clk 0:02:38]}  c6 {[%clk 0:02:24]} 11. e3 {[%clk 0:02:37]}  Nd7 {[%clk 0:02:21]} 12. Bd3 {[%clk 0:02:35]}  Nxg3 {[%clk 0:02:17]} 13. hxg3 {[%clk 0:02:34]}  Nf6 {[%clk 0:02:17]} 14. Nf3 {[%clk 0:02:33]}  Qe7 {[%clk 0:02:14]} 15. Nxg5 {[%clk 0:02:28]}  Bg4 {[%clk 0:02:11]} 16. Nf3 {[%clk 0:02:21]}  Nd7 {[%clk 0:02:09]} 17. Bf5 {[%clk 0:02:17]}  Bxf5 {[%clk 0:02:05]} 18. Qxf5 {[%clk 0:02:16]}  O-O-O {[%clk 0:02:04]} 19. Ne5 {[%clk 0:02:09]}  Kb8 {[%clk 0:01:45]} 20. Qxf7 {[%clk 0:01:58]}  Qd6 {[%clk 0:01:40]} 21. Nxd7+ {[%clk 0:01:52]}  Rxd7 {[%clk 0:01:41]} 22. Qf4 {[%clk 0:01:53]}  Qxf4 {[%clk 0:01:35]} 23. gxf4 {[%clk 0:01:51]}  Rg7 {[%clk 0:01:34]} 24. g3 {[%clk 0:01:51]}  h5 {[%clk 0:01:33]} 25. Ke2 {[%clk 0:01:50]}  Kc7 {[%clk 0:01:31]} 26. Rh4 {[%clk 0:01:49]}  Kb6 {[%clk 0:01:25]} 27. Kd3 {[%clk 0:01:43]}  Ka5 {[%clk 0:01:25]} 28. Rb1 {[%clk 0:01:26]}  b5 {[%clk 0:01:23]} 29. Kc2 {[%clk 0:01:21]}  Ka4 {[%clk 0:01:21]} 30. Rb4+ {[%clk 0:01:19]}  Ka5 {[%clk 0:01:20]} 31. Rb1 {[%clk 0:01:05]}  Ka4 {[%clk 0:01:20]} 32. Kb2 {[%clk 0:01:05]}  a5 {[%clk 0:01:19]} 33. Rbh1 {[%clk 0:01:04]}  Rb8 {[%clk 0:01:18]} 34. Rxh5 {[%clk 0:00:56]}  b4 {[%clk 0:01:18]} 35. axb4 {[%clk 0:00:57]}  axb4 {[%clk 0:01:18]} 36. Ra1+ {[%clk 0:00:56]}  Kb5 {[%clk 0:01:18]} 37. cxb4 {[%clk 0:00:56]}  Kxb4 {[%clk 0:01:19]} 38. Kc2 {[%clk 0:00:54]}  Kc4 {[%clk 0:01:17]} 39. Rh6 {[%clk 0:00:50]}  Rc7 {[%clk 0:01:15]} 40. Ra4+ {[%clk 0:00:45]}  Kb5 {[%clk 0:01:15]} 41. Ra3 {[%clk 0:00:43]}  Rbc8 {[%clk 0:01:06]} 42. Rb3+ {[%clk 0:00:40]}  Kc4 {[%clk 0:01:04]} 43. Rc3+ {[%clk 0:00:40]}  Kb4 {[%clk 0:01:04]} 44. Rh1 {[%clk 0:00:37]}  Rf8 {[%clk 0:00:46]} 45. Rb3+ {[%clk 0:00:32]}  Kc4 {[%clk 0:00:36]} 46. Kb2 {[%clk 0:00:28]} 1-0


[Site "https://www.chess.com"]

[Event "Titled Tuesday Blitz May 30 Early 2023"]
[White "Zaitsev, Alexander"]
[Black "Dilmukhametov, Artur"]
[WhiteFideId "4164490"]
[BlackFideId "24179922"]
[WhiteElo "2373"]
[BlackElo "2242"]
[Result "1/2-1/2"]
[Round "08"]
[TimeControl "180+2"]
[Date "2023.05.30"]
[WhiteClock "0:00:02"]
[BlackClock "0:00:04"]

1. e4 {[%clk 0:03:00]}  e5 {[%clk 0:03:00]} 2. Nc3 {[%clk 0:02:59]}  Bb4 {[%clk 0:02:59]} 3. Bc4 {[%clk 0:02:54]}  Nf6 {[%clk 0:02:58]} 4. Nge2 {[%clk 0:02:52]}  O-O {[%clk 0:02:57]} 5. O-O {[%clk 0:02:46]}  d6 {[%clk 0:02:54]} 6. d3 {[%clk 0:02:46]}  Be6 {[%clk 0:02:53]} 7. Bg5 {[%clk 0:02:42]}  c6 {[%clk 0:02:46]} 8. Kh1 {[%clk 0:02:23]}  Bxc4 {[%clk 0:02:37]} 9. dxc4 {[%clk 0:02:23]}  Nbd7 {[%clk 0:02:35]} 10. a3 {[%clk 0:02:18]}  Bxc3 {[%clk 0:02:34]} 11. Nxc3 {[%clk 0:02:19]}  Qb6 {[%clk 0:02:32]} 12. b4 {[%clk 0:02:00]}  Qd4 {[%clk 0:02:30]} 13. Qd3 {[%clk 0:01:48]}  a5 {[%clk 0:02:12]} 14. Rad1 {[%clk 0:01:44]}  axb4 {[%clk 0:02:11]} 15. axb4 {[%clk 0:01:44]}  Ra3 {[%clk 0:02:07]} 16. Qxd4 {[%clk 0:01:25]}  exd4 {[%clk 0:02:08]} 17. Nb1 {[%clk 0:01:26]}  Ra2 {[%clk 0:02:03]} 18. Rxd4 {[%clk 0:01:25]}  Rxc2 {[%clk 0:02:02]} 19. Rxd6 {[%clk 0:01:22]}  Nxe4 {[%clk 0:01:52]} 20. Rxd7 {[%clk 0:01:18]}  Nxg5 {[%clk 0:01:52]} 21. c5 {[%clk 0:01:11]}  Rb8 {[%clk 0:01:47]} 22. Re1 {[%clk 0:00:54]}  Ne4 {[%clk 0:01:22]} 23. h3 {[%clk 0:00:41]}  Rxf2 {[%clk 0:01:13]} 24. Rxe4 {[%clk 0:00:24]}  Rf1+ {[%clk 0:01:13]} 25. Kh2 {[%clk 0:00:25]}  Rxb1 {[%clk 0:01:14]} 26. Rxb7 {[%clk 0:00:25]}  Rf8 {[%clk 0:01:06]} 27. Ree7 {[%clk 0:00:18]}  g6 {[%clk 0:01:03]} 28. Rec7 {[%clk 0:00:15]}  Kg7 {[%clk 0:01:00]} 29. Rxc6 {[%clk 0:00:15]}  Re8 {[%clk 0:01:00]} 30. Rcc7 {[%clk 0:00:14]}  Rf1 {[%clk 0:01:00]} 31. Re7 {[%clk 0:00:12]}  Rd8 {[%clk 0:00:58]} 32. c6 {[%clk 0:00:13]}  Rdd1 {[%clk 0:00:57]} 33. c7 {[%clk 0:00:11]}  Rh1+ {[%clk 0:00:55]} 34. Kg3 {[%clk 0:00:11]}  Rd3+ {[%clk 0:00:55]} 35. Kf2 {[%clk 0:00:12]}  Rc1 {[%clk 0:00:39]} 36. b5 {[%clk 0:00:06]}  h5 {[%clk 0:00:35]} 37. b6 {[%clk 0:00:06]}  h4 {[%clk 0:00:36]} 38. Rb8 {[%clk 0:00:05]}  Rdc3 {[%clk 0:00:23]} 39. Ree8 {[%clk 0:00:05]}  R3c2+ {[%clk 0:00:20]} 40. Re2 {[%clk 0:00:06]}  Rc6 {[%clk 0:00:16]} 41. Rd8 {[%clk 0:00:05]}  g5 {[%clk 0:00:13]} 42. b7 {[%clk 0:00:04]}  Rf6+ {[%clk 0:00:11]} 43. Ke3 {[%clk 0:00:04]}  Re6+ {[%clk 0:00:11]} 44. Kd2 {[%clk 0:00:04]}  Rxc7 {[%clk 0:00:10]} 45. Rxe6 {[%clk 0:00:04]}  Rxb7 {[%clk 0:00:10]} 46. Red6 {[%clk 0:00:04]}  Rb2+ {[%clk 0:00:09]} 47. Ke3 {[%clk 0:00:03]}  Rxg2 {[%clk 0:00:10]} 48. Rd3 {[%clk 0:00:02]}  Kg6 {[%clk 0:00:08]} 49. Ke4 {[%clk 0:00:03]}  f5+ {[%clk 0:00:08]} 50. Ke5 {[%clk 0:00:03]}  Re2+ {[%clk 0:00:08]} 51. Kd5 {[%clk 0:00:04]}  g4 {[%clk 0:00:08]} 52. Rd6+ {[%clk 0:00:05]}  Kg5 {[%clk 0:00:08]} 53. hxg4 {[%clk 0:00:05]}  fxg4 {[%clk 0:00:09]} 54. Kd4 {[%clk 0:00:05]}  h3 {[%clk 0:00:09]} 55. Re3 {[%clk 0:00:06]}  Rxe3 {[%clk 0:00:09]} 56. Kxe3 {[%clk 0:00:06]}  Kh4 {[%clk 0:00:09]} 57. Rh6+ {[%clk 0:00:06]}  Kg3 {[%clk 0:00:09]} 58. Ke2 {[%clk 0:00:05]}  Kg2 {[%clk 0:00:09]} 59. Ke3 {[%clk 0:00:04]}  g3 {[%clk 0:00:09]} 60. Kf4 {[%clk 0:00:04]}  h2 {[%clk 0:00:09]} 61. Kg4 {[%clk 0:00:04]}  Kf2 {[%clk 0:00:06]} 62. Rh3 {[%clk 0:00:03]}  h1=Q {[%clk 0:00:02]} 63. Rxh1 {[%clk 0:00:03]}  g2 {[%clk 0:00:03]} 64. Rh2 {[%clk 0:00:02]}  Kf1 {[%clk 0:00:03]} 65. Rxg2 {[%clk 0:00:02]}  Kxg2 {[%clk 0:00:04]} 1/2-1/2


[Site "https://www.chess.com"]

[Event "Titled Tuesday Blitz May 30 Early 2023"]
[White "Aradhya, Garg"]
[Black "Ginzburg, Yakov"]
[WhiteFideId "25006746"]
[BlackFideId "4157176"]
[WhiteElo "2263"]
[BlackElo "2305"]
[Result "1/2-1/2"]
[Round "08"]
[TimeControl "180+2"]
[Date "2023.05.30"]
[WhiteClock "0:00:47"]
[BlackClock "0:00:06"]

1. d4 {[%clk 0:03:00]}  d5 {[%clk 0:02:59]} 2. c4 {[%clk 0:03:01]}  c6 {[%clk 0:02:59]} 3. Nc3 {[%clk 0:03:01]}  Nf6 {[%clk 0:02:59]} 4. e3 {[%clk 0:03:02]}  a6 {[%clk 0:02:59]} 5. Nf3 {[%clk 0:03:01]}  b5 {[%clk 0:02:58]} 6. b3 {[%clk 0:03:01]}  Bg4 {[%clk 0:02:58]} 7. Be2 {[%clk 0:03:00]}  Nbd7 {[%clk 0:02:57]} 8. Ne5 {[%clk 0:02:58]}  Bxe2 {[%clk 0:02:56]} 9. Qxe2 {[%clk 0:02:59]}  Qc7 {[%clk 0:02:37]} 10. Bb2 {[%clk 0:02:59]}  e6 {[%clk 0:02:31]} 11. Rc1 {[%clk 0:02:58]}  Nxe5 {[%clk 0:02:22]} 12. dxe5 {[%clk 0:02:59]}  Nd7 {[%clk 0:02:23]} 13. cxd5 {[%clk 0:02:58]}  Nxe5 {[%clk 0:02:13]} 14. dxc6 {[%clk 0:02:36]}  Qxc6 {[%clk 0:02:10]} 15. O-O {[%clk 0:02:35]}  Ng6 {[%clk 0:02:05]} 16. Rfd1 {[%clk 0:02:27]}  Qb7 {[%clk 0:02:04]} 17. a4 {[%clk 0:02:00]}  b4 {[%clk 0:02:00]} 18. Nb1 {[%clk 0:02:00]}  Be7 {[%clk 0:01:59]} 19. Bxg7 {[%clk 0:02:00]}  Rg8 {[%clk 0:01:59]} 20. Qb2 {[%clk 0:01:56]}  f6 {[%clk 0:01:54]} 21. g3 {[%clk 0:01:21]}  Rxg7 {[%clk 0:01:52]} 22. Nd2 {[%clk 0:01:20]}  Ne5 {[%clk 0:01:38]} 23. Nc4 {[%clk 0:01:20]}  Nf3+ {[%clk 0:01:35]} 24. Kf1 {[%clk 0:01:20]}  Nxh2+ {[%clk 0:01:35]} 25. Ke1 {[%clk 0:01:20]}  Qh1+ {[%clk 0:01:21]} 26. Ke2 {[%clk 0:01:20]}  Qf3+ {[%clk 0:01:20]} 27. Ke1 {[%clk 0:01:20]}  Qg4 {[%clk 0:01:02]} 28. Nd6+ {[%clk 0:01:14]}  Kf8 {[%clk 0:00:56]} 29. Rc4 {[%clk 0:01:14]}  Nf3+ {[%clk 0:00:44]} 30. Kf1 {[%clk 0:01:13]}  Qh5 {[%clk 0:00:41]} 31. Qc2 {[%clk 0:01:03]}  Rd8 {[%clk 0:00:31]} 32. Rc8 {[%clk 0:01:02]}  Rg5 {[%clk 0:00:14]} 33. Rxd8+ {[%clk 0:00:54]}  Bxd8 {[%clk 0:00:15]} 34. Qc8 {[%clk 0:00:54]}  Nh2+ {[%clk 0:00:11]} 35. Ke1 {[%clk 0:00:52]}  Nf3+ {[%clk 0:00:11]} 36. Kf1 {[%clk 0:00:52]}  Nh2+ {[%clk 0:00:06]} 37. Ke1 {[%clk 0:00:52]}  Nf3+ {[%clk 0:00:06]} 38. Kf1 {[%clk 0:00:47]} 1/2-1/2


[Site "https://www.chess.com"]

[Event "Titled Tuesday Blitz May 30 Early 2023"]
[White "Danielyan, Vahe"]
[Black "Senft, Sean"]
[WhiteFideId "13304828"]
[BlackFideId "2044960"]
[WhiteElo "2423"]
[BlackElo "1989"]
[Result "0-1"]
[Round "08"]
[TimeControl "180+2"]
[Date "2023.05.30"]
[WhiteClock "0:00:14"]
[BlackClock "0:01:41"]

1. d4 {[%clk 0:03:00]}  d5 {[%clk 0:03:00]} 2. c4 {[%clk 0:03:00]}  c6 {[%clk 0:03:00]} 3. Nc3 {[%clk 0:03:00]}  Nf6 {[%clk 0:03:01]} 4. Nf3 {[%clk 0:03:00]}  a6 {[%clk 0:03:02]} 5. c5 {[%clk 0:02:52]}  Nbd7 {[%clk 0:03:00]} 6. Bf4 {[%clk 0:02:52]}  Nh5 {[%clk 0:03:01]} 7. Bd2 {[%clk 0:02:51]}  Nhf6 {[%clk 0:03:02]} 8. h3 {[%clk 0:02:51]}  g6 {[%clk 0:03:02]} 9. Bf4 {[%clk 0:02:50]}  Bg7 {[%clk 0:03:02]} 10. e3 {[%clk 0:02:50]}  O-O {[%clk 0:03:02]} 11. Bd3 {[%clk 0:02:51]}  Re8 {[%clk 0:02:56]} 12. O-O {[%clk 0:02:42]}  Nh5 {[%clk 0:02:57]} 13. Bh2 {[%clk 0:02:42]}  e5 {[%clk 0:02:58]} 14. dxe5 {[%clk 0:02:40]}  Nxe5 {[%clk 0:02:58]} 15. Be2 {[%clk 0:02:36]}  Nxf3+ {[%clk 0:02:51]} 16. Bxf3 {[%clk 0:02:37]}  Nf6 {[%clk 0:02:47]} 17. Qb3 {[%clk 0:02:34]}  Nd7 {[%clk 0:02:44]} 18. Na4 {[%clk 0:02:20]}  Qa5 {[%clk 0:02:40]} 19. Rac1 {[%clk 0:02:17]}  Qb5 {[%clk 0:02:37]} 20. Rfd1 {[%clk 0:02:11]}  Bf8 {[%clk 0:02:31]} 21. Bd6 {[%clk 0:01:55]}  Bxd6 {[%clk 0:02:29]} 22. cxd6 {[%clk 0:01:56]}  Qxb3 {[%clk 0:02:28]} 23. axb3 {[%clk 0:01:55]}  Re6 {[%clk 0:02:28]} 24. e4 {[%clk 0:01:38]}  dxe4 {[%clk 0:02:26]} 25. Bg4 {[%clk 0:01:38]}  f5 {[%clk 0:02:26]} 26. Be2 {[%clk 0:01:39]}  b5 {[%clk 0:02:22]} 27. Rxc6 {[%clk 0:01:39]}  bxa4 {[%clk 0:02:21]} 28. Bc4 {[%clk 0:01:38]}  Kf7 {[%clk 0:02:21]} 29. bxa4 {[%clk 0:01:28]}  Ne5 {[%clk 0:02:16]} 30. Rc7+ {[%clk 0:01:24]}  Kf6 {[%clk 0:02:17]} 31. b3 {[%clk 0:00:49]}  Re8 {[%clk 0:02:01]} 32. Rxh7 {[%clk 0:00:39]}  Be6 {[%clk 0:01:52]} 33. d7 {[%clk 0:00:31]}  Red8 {[%clk 0:01:50]} 34. Rd6 {[%clk 0:00:32]}  Nxc4 {[%clk 0:01:44]} 35. bxc4 {[%clk 0:00:33]}  Ra7 {[%clk 0:01:41]} 36. c5 {[%clk 0:00:17]}  Raxd7 {[%clk 0:01:41]} 37. Rhxd7 {[%clk 0:00:15]}  Rxd7 {[%clk 0:01:41]} 38. Rxa6 {[%clk 0:00:15]}  Rc7 {[%clk 0:01:41]} 39. c6 {[%clk 0:00:14]}  Bd5 {[%clk 0:01:41]} 0-1


[Site "https://www.chess.com"]

[Event "Titled Tuesday Blitz May 30 Early 2023"]
[White "Itgelt, Khuyagtsogt"]
[Black "Mika, Tomasz"]
[WhiteFideId "4902912"]
[BlackFideId "1132970"]
[WhiteElo "2227"]
[BlackElo "2179"]
[Result "1-0"]
[Round "08"]
[TimeControl "180+2"]
[Date "2023.05.30"]
[WhiteClock "0:00:03"]
[BlackClock "0:00:00"]

1. d4 {[%clk 0:03:00]}  Nf6 {[%clk 0:02:59]} 2. Bf4 {[%clk 0:02:56]}  d5 {[%clk 0:02:56]} 3. c4 {[%clk 0:02:56]}  e6 {[%clk 0:02:49]} 4. Nc3 {[%clk 0:02:56]}  Bb4 {[%clk 0:02:48]} 5. Qa4+ {[%clk 0:02:55]}  Nc6 {[%clk 0:02:47]} 6. e3 {[%clk 0:02:56]}  O-O {[%clk 0:02:42]} 7. a3 {[%clk 0:02:54]}  Bxc3+ {[%clk 0:02:40]} 8. bxc3 {[%clk 0:02:55]}  Bd7 {[%clk 0:02:29]} 9. Qc2 {[%clk 0:02:54]}  Re8 {[%clk 0:02:23]} 10. Nf3 {[%clk 0:02:50]}  Rb8 {[%clk 0:02:14]} 11. Rb1 {[%clk 0:02:47]}  Qe7 {[%clk 0:02:01]} 12. c5 {[%clk 0:02:29]}  Rec8 {[%clk 0:01:30]} 13. Bd3 {[%clk 0:02:29]}  h6 {[%clk 0:01:30]} 14. h3 {[%clk 0:02:27]}  Ne8 {[%clk 0:01:23]} 15. O-O {[%clk 0:02:16]}  b6 {[%clk 0:01:22]} 16. Ba6 {[%clk 0:02:15]}  Rd8 {[%clk 0:01:22]} 17. Bb5 {[%clk 0:01:40]}  Na5 {[%clk 0:01:10]} 18. Bxd7 {[%clk 0:01:31]}  Qxd7 {[%clk 0:01:05]} 19. Ne5 {[%clk 0:01:29]}  Qe7 {[%clk 0:01:05]} 20. cxb6 {[%clk 0:00:58]}  axb6 {[%clk 0:01:04]} 21. c4 {[%clk 0:00:58]}  dxc4 {[%clk 0:00:46]} 22. Rb4 {[%clk 0:00:46]}  Nd6 {[%clk 0:00:42]} 23. Rc1 {[%clk 0:00:42]}  Ra8 {[%clk 0:00:28]} 24. Bh2 {[%clk 0:00:38]}  Qe8 {[%clk 0:00:27]} 25. a4 {[%clk 0:00:33]}  Nc6 {[%clk 0:00:22]} 26. Nxc6 {[%clk 0:00:31]}  Qxc6 {[%clk 0:00:23]} 27. Bxd6 {[%clk 0:00:31]}  cxd6 {[%clk 0:00:22]} 28. Rxc4 {[%clk 0:00:30]}  Qd5 {[%clk 0:00:21]} 29. Rb1 {[%clk 0:00:26]}  Ra6 {[%clk 0:00:09]} 30. Rb5 {[%clk 0:00:25]}  Qa8 {[%clk 0:00:07]} 31. Qb3 {[%clk 0:00:26]}  Rc8 {[%clk 0:00:03]} 32. Rxc8+ {[%clk 0:00:16]}  Qxc8 {[%clk 0:00:04]} 33. Rxb6 {[%clk 0:00:16]}  Qc1+ {[%clk 0:00:05]} 34. Kh2 {[%clk 0:00:16]}  Ra5 {[%clk 0:00:05]} 35. Rb8+ {[%clk 0:00:15]}  Kh7 {[%clk 0:00:05]} 36. Qd3+ {[%clk 0:00:13]}  f5 {[%clk 0:00:04]} 37. Qb3 {[%clk 0:00:11]}  d5 {[%clk 0:00:03]} 38. Qb6 {[%clk 0:00:08]}  Rxa4 {[%clk 0:00:01]} 39. Rb7 {[%clk 0:00:03]}  Qc2 {[%clk 0:00:01]} 40. Qxe6 {[%clk 0:00:03]}  Ra1 {[%clk 0:00:00]} 41. Qe5 {[%clk 0:00:03]} 1-0


[Site "https://www.chess.com"]

[Event "Titled Tuesday Blitz May 30 Early 2023"]
[White "Tanmay Jain"]
[Black "Weishaeutel, Moritz"]
[WhiteFideId "45015481"]
[BlackFideId "12967300"]
[WhiteElo "2032"]
[BlackElo "2301"]
[Result "1-0"]
[Round "08"]
[TimeControl "180+2"]
[Date "2023.05.30"]
[WhiteClock "0:01:40"]
[BlackClock "0:00:45"]

1. e4 {[%clk 0:03:00]}  e5 {[%clk 0:03:00]} 2. Nf3 {[%clk 0:03:01]}  Nf6 {[%clk 0:03:01]} 3. Nc3 {[%clk 0:03:00]}  Nc6 {[%clk 0:03:01]} 4. g3 {[%clk 0:02:59]}  d5 {[%clk 0:03:00]} 5. exd5 {[%clk 0:03:00]}  Nxd5 {[%clk 0:03:00]} 6. Bg2 {[%clk 0:03:00]}  Nxc3 {[%clk 0:03:00]} 7. bxc3 {[%clk 0:03:01]}  e4 {[%clk 0:03:00]} 8. Qe2 {[%clk 0:02:55]}  Qe7 {[%clk 0:02:47]} 9. Nd4 {[%clk 0:02:54]}  Nxd4 {[%clk 0:02:42]} 10. cxd4 {[%clk 0:02:55]}  f5 {[%clk 0:02:43]} 11. O-O {[%clk 0:02:54]}  Bd7 {[%clk 0:02:36]} 12. d3 {[%clk 0:02:50]}  Bc6 {[%clk 0:02:12]} 13. dxe4 {[%clk 0:02:35]}  fxe4 {[%clk 0:02:12]} 14. c4 {[%clk 0:02:27]}  O-O-O {[%clk 0:02:00]} 15. d5 {[%clk 0:02:16]}  Bd7 {[%clk 0:02:00]} 16. Be3 {[%clk 0:02:16]}  h5 {[%clk 0:01:40]} 17. c5 {[%clk 0:02:09]}  h4 {[%clk 0:01:22]} 18. c6 {[%clk 0:02:02]}  Bf5 {[%clk 0:01:05]} 19. cxb7+ {[%clk 0:01:59]}  Kd7 {[%clk 0:00:47]} 20. Qb5+ {[%clk 0:01:57]}  Kd6 {[%clk 0:00:45]} 21. Qc6+ {[%clk 0:01:40]}  Ke5 {[%clk 0:00:45]} 22. Bf4+ {[%clk 0:01:40]}  Kd4 {[%clk 0:00:45]} 23. Rfd1# {[%clk 0:01:40]} 1-0


[Site "https://www.chess.com"]